Workbook

Sheet NIH Salary Cap Calculator
C2: NIH/DHHS SALARY CAP CALCULATOR
B6: STEP 1. Enter data in yellow highlighted cells. | K6: Current NIH Salary Cap
B7: STEP 2. Review results in gray cells for use in iForms to properly reflect required cost sharing.
D9: Name of Individual: ab | E9: Mickey Mouse | H9: DUID:ab | I9: 110110
D11: Type of Appointment: ab | E11: 12 | G11: =VLOOKUP(Appointment_Type,Sheet2!A2:B4,2,FALSE) -> Calendar
D13: Position Type:ab | E13: Regular Rank Tenure/Tenure-Track Faculty
D15: Institutional Base Salary (IBS):ab | E15: 250000 | H15: =VLOOKUP(Appointment_Type,IBS_Message,2,FALSE) -> Enter Full Time Institutional Base Salary
B17: Choose Salary Cap Time Frame:ab | E17: Level II 01/06/2019 - until changed | J17: =VLOOKUP(Level,Sheet2!A11:C17,3,FALSE) -> 192300
C19: Effective Date:ab | E19: 2018-02-01
B23: WBSE | D23: Project Type | E23: Total % Effort* | F23: DHHS Federal / Federal Prime* | G23: Effort G/Ls | J23: % Effort | K23: =Sheet2!B7&" Amount" -> Calendar Year Amount | M23: =IF(Appointment_Type=1,"","Monthly Amount") -> Monthly Amount
B24: EXAMPLE:
B25: A030000 | D25: Research | E25: 0.15 | F25: Yes | G25: A030000 - 603600 | I25: Direct Cost | J25: 0.14 | K25: =IF($E$15<$J$17,ROUNDUP(+$J$17*E25,2),ROUNDUP(+Salary_Cap*E25,2)) -> 28845 | L25: =IBS_Full*Effort_1 -> 0 | M25: =IF(Appointment_Type=1,"",SUM(K25/Appointment_Type)) -> 2403.75
G26: A030000 - 603400 | I26: Cost Share | J26: 0.01 | K26: =IF($E$15<$J$17,0,ROUNDUP(+IBS_Full*E25,2)-K25) -> 8655 | L26: =SUM(L25-I26-J26) ->  | M26: =IF(Appointment_Type=1,"",SUM(K26/Appointment_Type)) -> 721.25
D28: Research | E28: 0 | F28: Yes | G28: =Sheet2!C21 -> - 603600 | I28: Direct Cost | J28: =Sheet2!D21 -> 0 | K28: =Sheet2!E21 -> 0 | M28: =IF(Appointment_Type=1,"",Sheet2!Q21) -> 0
G29: =IF(Federal_1="Yes",Sheet2!C22,"") -> - 603400 | I29: Cost Share | J29: =Sheet2!D22 -> 0 | K29: =IF(F28="Yes",Sheet2!E22,"") -> 0 | M29: =IF(Federal_1="Yes",Sheet2!Q22,"") -> 0
D31: Non-Research | E31: 0 | F31: No | G31: =Sheet2!C23 -> - 603700 | I31: Direct Cost | J31: =Sheet2!D23 -> 0 | K31: =Sheet2!E23 -> 0 | M31: =IF(Appointment_Type=1,"",Sheet2!Q23) -> 0
G32: =Sheet2!C24 ->  | I32: Cost Share | J32: =Sheet2!D24 ->  | K32: =IF(F31="Yes",Sheet2!E24," ") ->  | M32: =IF(Federal_2="Yes",Sheet2!Q24,"") -> 
D34: Non-Research | E34: 0 | F34: No | G34: =Sheet2!C25 -> - 603700 | I34: Direct Cost | J34: =Sheet2!D25 -> 0 | K34: =Sheet2!E25 -> 0 | M34: =IF(Appointment_Type=1,"",Sheet2!Q25) -> 0
G35: =Sheet2!C26 ->  | I35: Cost Share | J35: =Sheet2!D26 ->  | K35: =IF(F34="Yes",Sheet2!E26," ") ->  | M35: =IF(Federal_3="Yes",Sheet2!Q26,"") -> 
D37: Research | E37: 0 | F37: No | G37: =Sheet2!C27 -> - 603600 | I37: Direct Cost | J37: =Sheet2!D27 -> 0 | K37: =Sheet2!E27 -> 0 | M37: =IF(Appointment_Type=1,"",Sheet2!Q27) -> 0
G38: =Sheet2!C28 ->  | I38: Cost Share | J38: =Sheet2!D28 ->  | K38: =IF(F37="Yes",Sheet2!E28," ") ->  | M38: =IF(Federal_4="Yes",Sheet2!Q28,"") -> 
D40: Research | E40: 0 | F40: No | G40: =Sheet2!C29 -> - 603600 | I40: Direct Cost | J40: =Sheet2!D29 -> 0 | K40: =Sheet2!E29 -> 0 | M40: =IF(Appointment_Type=1,"",Sheet2!Q29) -> 0
G41: =Sheet2!C30 ->  | I41: Cost Share | J41: =Sheet2!D30 ->  | K41: =IF(F40="Yes",Sheet2!E30," ") ->  | M41: =IF(Federal_5="Yes",Sheet2!Q30,"") -> 
D43: Research | E43: 0 | F43: No | G43: =Sheet2!C31 -> - 603600 | I43: Direct Cost | J43: =Sheet2!D31 -> 0 | K43: =Sheet2!E31 -> 0 | M43: =IF(Appointment_Type=1,"",Sheet2!Q31) -> 0
G44: =Sheet2!C32 ->  | I44: Cost Share | J44: =Sheet2!D32 ->  | K44: =IF(F43="Yes",Sheet2!E32," ") ->  | M44: =IF(Federal_6="Yes",Sheet2!Q32,"") -> 
D46: Research | E46: 0 | F46: No | G46: =Sheet2!C33 -> - 603600 | I46: Direct Cost | J46: =Sheet2!D33 -> 0 | K46: =Sheet2!E33 -> 0 | M46: =IF(Appointment_Type=1,"",Sheet2!Q33) -> 0
G47: =Sheet2!C34 ->  | I47: Cost Share | J47: =Sheet2!D34 ->  | K47: =IF(F46="Yes",Sheet2!E34," ") ->  | M47: =IF(Federal_7="Yes",Sheet2!Q34,"") -> 
D49: Research | E49: 0 | F49: No | G49: =Sheet2!C35 -> - 603600 | I49: Direct Cost | J49: =Sheet2!D35 -> 0 | K49: =Sheet2!E35 -> 0 | M49: =IF(Appointment_Type=1,"",Sheet2!Q35) -> 0
G50: =Sheet2!C36 ->  | I50: Cost Share | J50: =Sheet2!D36 ->  | K50: =IF(F49="Yes",Sheet2!E36," ") ->  | M50: =IF(Federal_8="Yes",Sheet2!Q36,"") -> 
D52: Research | E52: 0 | F52: No | G52: =Sheet2!C37 -> - 603600 | I52: Direct Cost | J52: =Sheet2!D37 -> 0 | K52: =Sheet2!E37 -> 0 | M52: =IF(Appointment_Type=1,"",Sheet2!Q37) -> 0
G53: =Sheet2!C38 ->  | I53: Cost Share | J53: =Sheet2!D38 ->  | K53: =IF(F52="Yes",Sheet2!E38," ") ->  | M53: =IF(Federal_9="Yes",Sheet2!Q38,"") -> 
D55: Research | E55: 0 | F55: No | G55: =Sheet2!C39 -> - 603600 | I55: Direct Cost | J55: =Sheet2!D39 -> 0 | K55: =Sheet2!E39 -> 0 | M55: =IF(Appointment_Type=1,"",Sheet2!Q39) -> 0
G56: =Sheet2!C40 ->  | I56: Cost Share | J56: =Sheet2!D40 ->  | K56: =IF(F55="Yes",Sheet2!E40," ") ->  | M56: =IF(Federal_10="Yes",Sheet2!Q40,"") -> 
B58: *All DHHS operating divisions except the FDA (funded under the USDA appropriations bill) are under the salary cap requirement.

Sheet Sheet2 (hidden)
A1: Type of Appointment | D1: Description | E1: 12 | F1: 9 | G1: 1 | J1: Position | K1: Direct | L1: Cost Share-Research | M1: Cost Share-Non-Research
A2: 12 | B2: Calendar | D2: Level II 01/06/2019 - until changed | E2: 192300 | F2: 144225 | G2: =+F2/9 -> 16025 | J2: Regular Rank Tenure/Tenure-Track Faculty | K2: 603600 | L2: 603400 | M2: 603300
A3: 9 | B3: Academic | D3: Level II 01/07/2018 - 01/05/2019 | E3: 189600 | F3: 142200 | G3: 15800 | J3: Regular Rank Non-Tenure Track Faculty | K3: 602600 | L3: 600400 | M3: 600300
A4: 1 | B4: Summer Supplement | D4: Level II 01/08/2017 - 01/06/2018 | E4: 187000 | F4: 140250 | G4: =+F4/9 -> 15583.33333 | J4: Non-Regular Rank Faculty | K4: 602600 | L4: 600400 | M4: 600300
D5: Level II 01/10/2016 - 01/07/2017 | E5: 185100 | F5: 138825 | G5: 15425 | J5: Monthly Exempt Staff | K5: 601600 | L5: 600400 | M5: 600300
D6: Level II 01/11/2015 - 01/09/2016 | E6: 183300 | F6: 137475 | G6: 15275
A7: =Appointment_Type -> 12 | B7: =VLOOKUP(A7,H9:I11,2,FALSE) -> Calendar Year | D7: Level II 01/12/2014 - 01/10/2015 | E7: 181500 | F7: 136125 | G7: 15125 | J7: Research
D8: Level II 12/23/2011 - 01/11/2015 | E8: 179700 | F8: 134775 | G8: 14975 | J8: Non-Research
A9: =Level -> Level II 01/06/2019 - until changed | C9: =IFERROR(INDEX($E$1:$E$8,SMALL(IF($A9=$G$1:$G$8,ROW($F$1:$F$8)-MIN(ROW($A$7))+1,""),COLUMN()-4)), "") ->  | H9: 12 | I9: Calendar Year
D10: =IBS_Full -> 250000 | E10: Full IBS | H10: 9 | I10: Academic Year | K10: Direct | L10: Cost Share
A11: =D2 -> Level II 01/06/2019 - until changed | C11: =HLOOKUP($A$7,$E$1:$G$8,2,FALSE) -> 192300 | D11: =Salary_Cap -> 192300 | E11: Salary Cap Amount | H11: 1 | I11: Summer Supplement | J11: =J2&"-"&J7 -> Regular Rank Tenure/Tenure-Track Faculty-Research | K11: 603600 | L11: 603400
A12: =D3 -> Level II 01/07/2018 - 01/05/2019 | C12: =HLOOKUP($A$7,$E$1:$G$8,3,FALSE) -> 189600 | J12: =J2&"-"&J8 -> Regular Rank Tenure/Tenure-Track Faculty-Non-Research | K12: 603700 | L12: 603300
A13: =D4 -> Level II 01/08/2017 - 01/06/2018 | C13: =HLOOKUP($A$7,$E$1:$G$8,4,FALSE) -> 187000 | D13: 12 | E13: Enter Full Time Institutional Base Salary | J13: =J3&"-"&J7 -> Regular Rank Non-Tenure Track Faculty-Research | K13: 602600 | L13: 600400
A14: =D5 -> Level II 01/10/2016 - 01/07/2017 | C14: =HLOOKUP($A$7,$E$1:$G$8,5,FALSE) -> 185100 | D14: 9 | E14: Enter Full Time Institutional Base Salary | J14: =J3&"-"&J8 -> Regular Rank Non-Tenure Track Faculty-Non-Research | K14: 602700 | L14: 600300
A15: =D6 -> Level II 01/11/2015 - 01/09/2016 | C15: =HLOOKUP($A$7,$E$1:$G$8,6,FALSE) -> 183300 | D15: 1 | E15: Summer-Enter ONE month Salary | J15: =J4&"-"&J7 -> Non-Regular Rank Faculty-Research | K15: 602600 | L15: 600400
A16: Level II 01/12/2014 - 01/10/2015 | C16: =HLOOKUP($A$7,$E$1:$G$8,7,FALSE) -> 181500 | J16: =J4&"-"&J8 -> Non-Regular Rank Faculty-Non-Research | K16: 602700 | L16: 600300
A17: Level II 12/23/2011 - 01/11/2015 | C17: =HLOOKUP($A$7,$E$1:$G$8,8,FALSE) -> 179700 | D17: Yes | E17: Y | J17: =J5&"-"&J7 -> Monthly Exempt Staff-Research | K17: 601600 | L17: 600400
D18: No | E18: N | J18: =J5&"-"&J8 -> Monthly Exempt Staff-Non-Research | K18: 601900 | L18: 600300
A20: WBSE | B20: Total % EFFORT on Project* | F20: Direct Charge (% and $) | G20: Cost Share (% and $) | M20: Fed Prime? | N20: Salary Over Cap? | P20: Appointment | Q20: Monthly
A21: =WBSE_1 -> 0 | B21: =Effort_1 -> 0 | C21: =IF(M21="Y",WBSE_1&" - "&K22,WBSE_1&" - "&K22) -> - 603600 | D21: =IF(M21="Y",F21,B21) -> 0 | E21: =IF(M21="Y",F22,I21) -> 0 | F21: =ROUNDDOWN(+$H21/IBS_Full*100,1)/100 -> 0 | G21: =IF(H22>0,ROUNDUP(+$H22/$D$10*100,1)/100,0) -> 0 | H21: =IF($D$10<$D$11,ROUNDUP(+$D$10*Effort_1,2),ROUNDUP(+Salary_Cap*Effort_1,2)) -> 0 | I21: =IBS_Full*Effort_1 -> 0 | K21: Direct | L21: Cost Share | M21: =VLOOKUP(Federal_1,Federal_Prime,2,FALSE) -> Y | N21: =IF($D$10>$D$11,"Y","N") -> Y | O21: =M21&N21 -> YY | P21: =$A$7 -> 12 | Q21: =IF(P21=1,"",SUM(F22/P21)) -> 0
C22: =IF(O21="YY",WBSE_1&" - "&L22," ") -> - 603400 | D22: =IF(O21="YY",G21,"") -> 0 | E22: =IF(O21="YY",G22,"") -> 0 | F22: =ROUND(+IBS_Full*F21,2) -> 0 | G22: =IF(H22>0,ROUND(+IBS_Full*G21,2),0) -> 0 | H22: =IF($D$10<$D$11,0,ROUNDUP(+IBS_Full*Effort_1,2)-H21) -> 0 | I22: =SUM(I21-F22-G22) -> 0 | J22: =Rank&"-"&WBSE_1_Project -> Regular Rank Tenure/Tenure-Track Faculty-Research | K22: =VLOOKUP($J22,$J$11:$L$18,2,FALSE) -> 603600 | L22: =VLOOKUP($J22,$J$11:$L$18,3,FALSE) -> 603400 | P22: =$A$7 -> 12 | Q22: =IF(P22=1,"",SUM(G22/P22)) -> 0
A23: =WBSE_2 -> 0 | B23: =Effort_2 -> 0 | C23: =IF(M23="Y",WBSE_2&" - "&K24,WBSE_2&" - "&K24) -> - 603700 | D23: =IF(M23="Y",F23,B23) -> 0 | E23: =IF(M23="Y",F24,I23) -> 0 | F23: =ROUNDDOWN(+$H23/IBS_Full*100,1)/100 -> 0 | G23: =IF(H24>0,ROUNDUP(+$H24/$D$10*100,1)/100,0) -> 0 | H23: =IF($D$10<$D$11,ROUNDUP(+$D$10*Effort_2,2),ROUNDUP(+Salary_Cap*Effort_2,2)) -> 0 | I23: =IBS_Full*Effort_2 -> 0 | K23: Direct | L23: Cost Share | M23: =VLOOKUP(Federal_2,Federal_Prime,2,FALSE) -> N | N23: =IF($D$10>$D$11,"Y","N") -> Y | O23: =M23&N23 -> NY | P23: 12 | Q23: =IF(P23=1,"",SUM(F24/P23)) -> 0
C24: =IF(O23="YY",WBSE_2&" - "&L24," ") ->  | D24: =IF(O23="YY",G23,"") ->  | E24: =IF(O23="YY",G24,"") ->  | F24: =ROUND(+IBS_Full*F23,2) -> 0 | G24: =IF(H24>0,ROUND(+IBS_Full*G23,2),0) -> 0 | H24: =IF($D$10<$D$11,0,ROUNDUP(+IBS_Full*Effort_2,2)-H23) -> 0 | I24: =SUM(I23-F24-G24) -> 0 | J24: =Rank&"-"&WBSE_2_Project -> Regular Rank Tenure/Tenure-Track Faculty-Non-Research | K24: =VLOOKUP($J24,$J$11:$L$18,2,FALSE) -> 603700 | L24: =VLOOKUP($J24,$J$11:$L$18,3,FALSE) -> 603300 | P24: 12 | Q24: =IF(P24=1,"",SUM(G24/P24)) -> 0
A25: =WBSE_3 -> 0 | B25: =Effort_3 -> 0 | C25: =IF(M25="Y",WBSE_3&" - "&K26,WBSE_3&" - "&K26) -> - 603700 | D25: =IF(M25="Y",F25,B25) -> 0 | E25: =IF(M25="Y",F26,I25) -> 0 | F25: =ROUNDDOWN(+$H25/IBS_Full*100,1)/100 -> 0 | G25: =IF(H26>0,ROUNDUP(+$H26/$D$10*100,1)/100,0) -> 0 | H25: =IF($D$10<$D$11,ROUNDUP(+$D$10*Effort_3,2),ROUNDUP(+Salary_Cap*Effort_3,2)) -> 0 | I25: =IBS_Full*Effort_3 -> 0 | K25: Direct | L25: Cost Share | M25: =VLOOKUP(Federal_3,Federal_Prime,2,FALSE) -> N | N25: =IF($D$10>$D$11,"Y","N") -> Y | O25: =M25&N25 -> NY | P25: 12 | Q25: =IF(P25=1,"",SUM(F26/P25)) -> 0
C26: =IF(O25="YY",WBSE_3&" - "&L26," ") ->  | D26: =IF(O25="YY",G25,"") ->  | E26: =IF(O25="YY",G26,"") ->  | F26: =ROUND(+IBS_Full*F25,2) -> 0 | G26: =IF(H26>0,ROUND(+IBS_Full*G25,2),0) -> 0 | H26: =IF($D$10<$D$11,0,ROUNDUP(+IBS_Full*Effort_3,2)-H25) -> 0 | I26: =SUM(I25-F26-G26) -> 0 | J26: =Rank&"-"&WBSE_3_Project -> Regular Rank Tenure/Tenure-Track Faculty-Non-Research | K26: =VLOOKUP($J26,$J$11:$L$18,2,FALSE) -> 603700 | L26: =VLOOKUP($J26,$J$11:$L$18,3,FALSE) -> 603300 | P26: 12 | Q26: =IF(P26=1,"",SUM(G26/P26)) -> 0
A27: =WBSE_4 -> 0 | B27: =Effort_4 -> 0 | C27: =IF(M27="Y",WBSE_4&" - "&K28,WBSE_4&" - "&K28) -> - 603600 | D27: =IF(M27="Y",F27,B27) -> 0 | E27: =IF(M27="Y",F28,I27) -> 0 | F27: =ROUNDDOWN(+$H27/IBS_Full*100,1)/100 -> 0 | G27: =IF(H28>0,ROUNDUP(+$H28/$D$10*100,1)/100,0) -> 0 | H27: =IF($D$10<$D$11,ROUNDUP(+$D$10*Effort_4,2),ROUNDUP(+Salary_Cap*Effort_4,2)) -> 0 | I27: =IBS_Full*Effort_4 -> 0 | K27: Direct | L27: Cost Share | M27: =VLOOKUP(Federal_4,Federal_Prime,2,FALSE) -> N | N27: =IF($D$10>$D$11,"Y","N") -> Y | O27: =M27&N27 -> NY | P27: 12 | Q27: =IF(P27=1,"",SUM(F28/P27)) -> 0
C28: =IF(O27="YY",WBSE_4&" - "&L28," ") ->  | D28: =IF(O27="YY",G27,"") ->  | E28: =IF(O27="YY",G28,"") ->  | F28: =ROUND(+IBS_Full*F27,2) -> 0 | G28: =IF(H28>0,ROUND(+IBS_Full*G27,2),0) -> 0 | H28: =IF($D$10<$D$11,0,ROUNDUP(+IBS_Full*Effort_4,2)-H27) -> 0 | I28: =SUM(I27-F28-G28) -> 0 | J28: =Rank&"-"&WBSE_4_Project -> Regular Rank Tenure/Tenure-Track Faculty-Research | K28: =VLOOKUP($J28,$J$11:$L$18,2,FALSE) -> 603600 | L28: =VLOOKUP($J28,$J$11:$L$18,3,FALSE) -> 603400 | P28: 12 | Q28: =IF(P28=1,"",SUM(G28/P28)) -> 0
A29: =WBSE_5 -> 0 | B29: =Effort_5 -> 0 | C29: =IF(M29="Y",WBSE_5&" - "&K30,WBSE_5&" - "&K30) -> - 603600 | D29: =IF(M29="Y",F29,B29) -> 0 | E29: =IF(M29="Y",F30,I29) -> 0 | F29: =ROUNDDOWN(+$H29/IBS_Full*100,1)/100 -> 0 | G29: =IF(H30>0,ROUNDUP(+$H30/$D$10*100,1)/100,0) -> 0 | H29: =IF($D$10<$D$11,ROUNDUP(+$D$10*Effort_5,2),ROUNDUP(+Salary_Cap*Effort_5,2)) -> 0 | I29: =IBS_Full*Effort_5 -> 0 | K29: Direct | L29: Cost Share | M29: =VLOOKUP(Federal_5,Federal_Prime,2,FALSE) -> N | N29: =IF($D$10>$D$11,"Y","N") -> Y | O29: =M29&N29 -> NY | P29: 12 | Q29: =IF(P29=1,"",SUM(F30/P29)) -> 0
C30: =IF(O29="YY",WBSE_5&" - "&L30," ") ->  | D30: =IF(O29="YY",G29,"") ->  | E30: =IF(O29="YY",G30,"") ->  | F30: =ROUND(+IBS_Full*F29,2) -> 0 | G30: =IF(H30>0,ROUND(+IBS_Full*G29,2),0) -> 0 | H30: =IF($D$10<$D$11,0,ROUNDUP(+IBS_Full*Effort_5,2)-H29) -> 0 | I30: =SUM(I29-F30-G30) -> 0 | J30: =Rank&"-"&WBSE_5_Project -> Regular Rank Tenure/Tenure-Track Faculty-Research | K30: =VLOOKUP($J30,$J$11:$L$18,2,FALSE) -> 603600 | L30: =VLOOKUP($J30,$J$11:$L$18,3,FALSE) -> 603400 | P30: 12 | Q30: =IF(P30=1,"",SUM(G30/P30)) -> 0
A31: =WBSE_6 -> 0 | B31: =Effort_6 -> 0 | C31: =IF(M31="Y",WBSE_6&" - "&K32,WBSE_6&" - "&K32) -> - 603600 | D31: =IF(M31="Y",F31,B31) -> 0 | E31: =IF(M31="Y",F32,I31) -> 0 | F31: =ROUNDDOWN(+$H31/IBS_Full*100,1)/100 -> 0 | G31: =IF(H32>0,ROUNDUP(+$H32/$D$10*100,1)/100,0) -> 0 | H31: =IF($D$10<$D$11,ROUNDUP(+$D$10*Effort_6,2),ROUNDUP(+Salary_Cap*Effort_6,2)) -> 0 | I31: =IBS_Full*Effort_6 -> 0 | K31: Direct | L31: Cost Share | M31: =VLOOKUP(Federal_6,Federal_Prime,2,FALSE) -> N | N31: =IF($D$10>$D$11,"Y","N") -> Y | O31: =M31&N31 -> NY | P31: 12 | Q31: =IF(P31=1,"",SUM(F32/P31)) -> 0
C32: =IF(O31="YY",WBSE_6&" - "&L32," ") ->  | D32: =IF(O31="YY",G31,"") ->  | E32: =IF(O31="YY",G32,"") ->  | F32: =ROUND(+IBS_Full*F31,2) -> 0 | G32: =IF(H32>0,ROUND(+IBS_Full*G31,2),0) -> 0 | H32: =IF($D$10<$D$11,0,ROUNDUP(+IBS_Full*Effort_6,2)-H31) -> 0 | I32: =SUM(I31-F32-G32) -> 0 | J32: =Rank&"-"&WBSE_6_Project -> Regular Rank Tenure/Tenure-Track Faculty-Research | K32: =VLOOKUP($J32,$J$11:$L$18,2,FALSE) -> 603600 | L32: =VLOOKUP($J32,$J$11:$L$18,3,FALSE) -> 603400 | P32: 12 | Q32: =IF(P32=1,"",SUM(G32/P32)) -> 0
A33: =WBSE_7 -> 0 | B33: =Effort_7 -> 0 | C33: =IF(M33="Y",WBSE_7&" - "&K34,WBSE_7&" - "&K34) -> - 603600 | D33: =IF(M33="Y",F33,B33) -> 0 | E33: =IF(M33="Y",F34,I33) -> 0 | F33: =ROUNDDOWN(+$H33/IBS_Full*100,1)/100 -> 0 | G33: =IF(H34>0,ROUNDUP(+$H34/$D$10*100,1)/100,0) -> 0 | H33: =IF($D$10<$D$11,ROUNDUP(+$D$10*Effort_7,2),ROUNDUP(+Salary_Cap*Effort_7,2)) -> 0 | I33: =IBS_Full*Effort_7 -> 0 | K33: Direct | L33: Cost Share | M33: =VLOOKUP(Federal_7,Federal_Prime,2,FALSE) -> N | N33: =IF($D$10>$D$11,"Y","N") -> Y | O33: =M33&N33 -> NY | P33: 12 | Q33: =IF(P33=1,"",SUM(F34/P33)) -> 0
C34: =IF(O33="YY",WBSE_7&" - "&L34," ") ->  | D34: =IF(O33="YY",G33,"") ->  | E34: =IF(O33="YY",G34,"") ->  | F34: =ROUND(+IBS_Full*F33,2) -> 0 | G34: =IF(H34>0,ROUND(+IBS_Full*G33,2),0) -> 0 | H34: =IF($D$10<$D$11,0,ROUNDUP(+IBS_Full*Effort_7,2)-H33) -> 0 | I34: =SUM(I33-F34-G34) -> 0 | J34: =Rank&"-"&WBSE_7_Project -> Regular Rank Tenure/Tenure-Track Faculty-Research | K34: =VLOOKUP($J34,$J$11:$L$18,2,FALSE) -> 603600 | L34: =VLOOKUP($J34,$J$11:$L$18,3,FALSE) -> 603400 | P34: 12 | Q34: =IF(P34=1,"",SUM(G34/P34)) -> 0
A35: =WBSE_8 -> 0 | B35: =Effort_8 -> 0 | C35: =IF(M35="Y",WBSE_8&" - "&K36,WBSE_8&" - "&K36) -> - 603600 | D35: =IF(M35="Y",F35,B35) -> 0 | E35: =IF(M35="Y",F36,I35) -> 0 | F35: =ROUNDDOWN(+$H35/IBS_Full*100,1)/100 -> 0 | G35: =IF(H36>0,ROUNDUP(+$H36/$D$10*100,1)/100,0) -> 0 | H35: =IF($D$10<$D$11,ROUNDUP(+$D$10*Effort_8,2),ROUNDUP(+Salary_Cap*Effort_8,2)) -> 0 | I35: =IBS_Full*Effort_8 -> 0 | K35: Direct | L35: Cost Share | M35: =VLOOKUP(Federal_8,Federal_Prime,2,FALSE) -> N | N35: =IF($D$10>$D$11,"Y","N") -> Y | O35: =M35&N35 -> NY | P35: 12 | Q35: =IF(P35=1,"",SUM(F36/P35)) -> 0
C36: =IF(O35="YY",WBSE_8&" - "&L36," ") ->  | D36: =IF(O35="YY",G35,"") ->  | E36: =IF(O35="YY",G36,"") ->  | F36: =ROUND(+IBS_Full*F35,2) -> 0 | G36: =IF(H36>0,ROUND(+IBS_Full*G35,2),0) -> 0 | H36: =IF($D$10<$D$11,0,ROUNDUP(+IBS_Full*Effort_8,2)-H35) -> 0 | I36: =SUM(I35-F36-G36) -> 0 | J36: =Rank&"-"&WBSE_8_Project -> Regular Rank Tenure/Tenure-Track Faculty-Research | K36: =VLOOKUP($J36,$J$11:$L$18,2,FALSE) -> 603600 | L36: =VLOOKUP($J36,$J$11:$L$18,3,FALSE) -> 603400 | P36: 12 | Q36: =IF(P36=1,"",SUM(G36/P36)) -> 0
A37: =WBSE_9 -> 0 | B37: =Effort_9 -> 0 | C37: =IF(M37="Y",WBSE_9&" - "&K38,WBSE_9&" - "&K38) -> - 603600 | D37: =IF(M37="Y",F37,B37) -> 0 | E37: =IF(M37="Y",F38,I37) -> 0 | F37: =ROUNDDOWN(+$H37/IBS_Full*100,1)/100 -> 0 | G37: =IF(H38>0,ROUNDUP(+$H38/$D$10*100,1)/100,0) -> 0 | H37: =IF($D$10<$D$11,ROUNDUP(+$D$10*Effort_9,2),ROUNDUP(+Salary_Cap*Effort_9,2)) -> 0 | I37: =IBS_Full*Effort_9 -> 0 | K37: Direct | L37: Cost Share | M37: =VLOOKUP(Federal_9,Federal_Prime,2,FALSE) -> N | N37: =IF($D$10>$D$11,"Y","N") -> Y | O37: =M37&N37 -> NY | P37: 12 | Q37: =IF(P37=1,"",SUM(F38/P37)) -> 0
C38: =IF(O37="YY",WBSE_9&" - "&L38," ") ->  | D38: =IF(O37="YY",G37,"") ->  | E38: =IF(O37="YY",G38,"") ->  | F38: =ROUND(+IBS_Full*F37,2) -> 0 | G38: =IF(H38>0,ROUND(+IBS_Full*G37,2),0) -> 0 | H38: =IF($D$10<$D$11,0,ROUNDUP(+IBS_Full*Effort_9,2)-H37) -> 0 | I38: =SUM(I37-F38-G38) -> 0 | J38: =Rank&"-"&WBSE_9_Project -> Regular Rank Tenure/Tenure-Track Faculty-Research | K38: =VLOOKUP($J38,$J$11:$L$18,2,FALSE) -> 603600 | L38: =VLOOKUP($J38,$J$11:$L$18,3,FALSE) -> 603400 | P38: 12 | Q38: =IF(P38=1,"",SUM(G38/P38)) -> 0
A39: =WBSE_10 -> 0 | B39: =Effort_10 -> 0 | C39: =IF(M39="Y",WBSE_10&" - "&K40,WBSE_10&" - "&K40) -> - 603600 | D39: =IF(M39="Y",F39,B39) -> 0 | E39: =IF(M39="Y",F40,I39) -> 0 | F39: =ROUNDDOWN(+$H39/IBS_Full*100,1)/100 -> 0 | G39: =IF(H40>0,ROUNDUP(+$H40/$D$10*100,1)/100,0) -> 0 | H39: =IF($D$10<$D$11,ROUNDUP(+$D$10*Effort_10,2),ROUNDUP(+Salary_Cap*Effort_10,2)) -> 0 | I39: =IBS_Full*Effort_10 -> 0 | K39: Direct | L39: Cost Share | M39: =VLOOKUP(Federal_10,Federal_Prime,2,FALSE) -> N | N39: =IF($D$10>$D$11,"Y","N") -> Y | O39: =M39&N39 -> NY | P39: 12 | Q39: =IF(P39=1,"",SUM(F40/P39)) -> 0
C40: =IF(O39="YY",WBSE_10&" - "&L40," ") ->  | D40: =IF(O39="YY",G39,"") ->  | E40: =IF(O39="YY",G40,"") ->  | F40: =ROUND(+IBS_Full*F39,2) -> 0 | G40: =IF(H40>0,ROUND(+IBS_Full*G39,2),0) -> 0 | H40: =IF($D$10<$D$11,0,ROUNDUP(+IBS_Full*Effort_10,2)-H39) -> 0 | I40: =SUM(I39-F40-G40) -> 0 | J40: =Rank&"-"&WBSE_10_Project -> Regular Rank Tenure/Tenure-Track Faculty-Research | K40: =VLOOKUP($J40,$J$11:$L$18,2,FALSE) -> 603600 | L40: =VLOOKUP($J40,$J$11:$L$18,3,FALSE) -> 603400 | P40: 12 | Q40: =IF(P40=1,"",SUM(G40/P40)) -> 0
